fUSD/lending_fUSD_20240420
["ID","MTS","AMOUNT","RATE_DAILY","PERIOD"]
[323030006,1713605442880,-500.0,0.00015068,2]
[323030007,1713605442890,-500.0,0.00015068,2]
[323030008,1713605442900,-500.0,0.00015068,2]
[323030009,1713605442911,-151.0,0.00015068,2]
[323030010,1713605442921,-151.0,0.00015068,2]
[323030011,1713605442932,-500.0,0.00015068,2]
[323030012,1713605442942,-767.2,0.00015068,2]
[323030013,1713605442952,-783.64,0.00015068,2]
[323030014,1713605442963,-500.0,0.00015068,2]
[323030015,1713605442973,-500.0,0.00015068,2]
[323030016,1713605442983,-163.33353209,0.00015068,2]
[323030017,1713605442993,-500.0,0.00015068,2]
[323030018,1713605443003,-516.80094974,0.00015068,2]
[323030019,1713605443014,-500.0,0.00015068,2]
[323030020,1713605443024,-549.13,0.00015068,2]
[323030021,1713605443035,-151.0,0.00015068,2]
[323030022,1713605443045,-500.0,0.00015068,2]
[323030023,1713605443055,-151.0,0.00015068,2]
[323030024,1713605443066,-667.83,0.00015068,2]
[323030025,1713605443077,-500.0,0.00015068,2]
[323030026,1713605443087,-500.0,0.00015068,2]
[323030027,1713605443097,-822.13,0.00015068,2]
[323030028,1713605443107,-612.22,0.00015068,2]
[323030029,1713605443118,-500.0,0.00015068,2]
[323030030,1713605443129,-529.58,0.00015068,2]
[323030031,1713605443139,-500.0,0.00015068,2]
[323030032,1713605443150,-500.0,0.00015068,2]
[323030033,1713605443161,-500.0,0.00015068,2]
[323030034,1713605443171,-500.0,0.00015068,2]
[323030035,1713605443181,-500.0,0.00015068,2]
[323030036,1713605443192,-500.0,0.00015068,2]
[323030037,1713605443202,-500.0,0.00015068,2]
[323030038,1713605443212,-500.0,0.00015068,2]
[323030039,1713605443222,-500.0,0.00015068,2]
[323030044,1713605443886,-723.8,0.00015068,2]
[323030045,1713605443921,-500.0,0.00015068,2]
[323030046,1713605443945,-500.0,0.00015068,2]
[323030047,1713605443963,-500.0,0.00015068,2]
[323030048,1713605443974,-638.53,0.00015068,2]
[323030049,1713605443983,-429.1823708,0.00015068,2]
[323030050,1713605443993,-500.0,0.00015068,2]
[323030051,1713605444002,-500.0,0.00015068,2]
[323030052,1713605444011,-500.0,0.00015068,2]
[323030053,1713605444020,-651.8,0.00015068,2]
[323030054,1713605444029,-500.0,0.00015068,2]
[323030055,1713605444038,-500.0,0.00015068,2]
[323030056,1713605444047,-489.65370128,0.00015068,2]
[323030057,1713605444057,-355.94153497,0.00015068,2]
[323030058,1713605444067,-500.0,0.00015068,2]
[323030059,1713605444078,-732.91,0.00015068,2]
[323030060,1713605444088,-151.0,0.00015068,2]
[323030061,1713605444099,-500.0,0.00015068,2]
[323030062,1713605444109,-714.04,0.00015068,2]
[323030063,1713605444118,-151.0,0.00015068,2]
[323030064,1713605444128,-166.91005396,0.00015068,2]
[323030065,1713605444138,-500.0,0.00015068,2]
[323030066,1713605444149,-1024.1,0.00015068,2]
[323030067,1713605444159,-890.1,0.00015068,2]
[323030068,1713605444168,-500.0,0.00015068,2]
[323030069,1713605444178,-500.0,0.00015068,2]
[323030070,1713605444187,-500.0,0.00015068,2]
[323030071,1713605444196,-500.0,0.00015068,2]
[323030072,1713605444207,-500.0,0.00015068,2]
[323030073,1713605444218,-500.0,0.00015068,2]
[323030074,1713605444228,-500.0,0.00015068,2]
[323030075,1713605444238,-500.0,0.00015068,2]
[323030076,1713605444249,-500.0,0.00015068,2]
[323030077,1713605444260,-500.0,0.00015068,2]
[323030078,1713605444269,-867.54,0.00015068,2]
[323030079,1713605444279,-500.0,0.00015068,2]
[323030080,1713605444289,-500.0,0.00015068,2]
[323030081,1713605444299,-500.0,0.00015068,2]
[323030082,1713605444309,-500.0,0.00015068,2]
[323030083,1713605444318,-823.75,0.00015068,2]
[323030084,1713605444328,-1052.51,0.00015068,2]
[323030085,1713605444337,-500.0,0.00015068,2]
[323030086,1713605444347,-500.0,0.00015068,2]
[323030087,1713605444356,-500.0,0.00015068,2]
[323030088,1713605444367,-603.75,0.00015068,2]
[323030089,1713605444377,-500.0,0.00015068,2]
[323030090,1713605444387,-500.0,0.00015068,2]
[323030091,1713605444396,-500.0,0.00015068,2]
[323030092,1713605444407,-500.0,0.00015068,2]
[323030093,1713605444416,-500.0,0.00015068,2]
[323030094,1713605444425,-590.02,0.00015068,2]
[323030095,1713605444435,-1432.46,0.00015068,2]
[323030096,1713605444444,-500.0,0.00015068,2]
[323030097,1713605444455,-500.0,0.00015068,2]
[323030098,1713605444467,-536.26864434,0.00015068,2]
[323030099,1713605444476,-579.24,0.00015068,2]
[323030100,1713605444486,-529.98,0.00015068,2]
[323030101,1713605444496,-500.0,0.00015068,2]
[323030102,1713605444506,-500.0,0.00015068,2]
[323030103,1713605444515,-500.0,0.00015068,2]
[323030104,1713605444525,-165.910754,0.00015068,2]
[323030105,1713605444535,-500.0,0.00015068,2]
[323030106,1713605444544,-500.0,0.00015068,2]
[323030107,1713605444554,-500.0,0.00015068,2]
[323030108,1713605444564,-1122.86,0.00015068,2]
[323030109,1713605444575,-539.78,0.00015068,2]
[323030110,1713605444585,-500.0,0.00015068,2]
[323030111,1713605444595,-500.0,0.00015068,2]
[323030112,1713605444605,-848.43,0.00015068,2]
[323030113,1713605444614,-654.32,0.00015068,2]
[323030114,1713605444624,-500.0,0.00015068,2]
[323030115,1713605444634,-500.0,0.00015068,2]
[323030116,1713605444643,-549.21,0.00015068,2]
[323030117,1713605444653,-646.94,0.00015068,2]
[323030118,1713605444662,-500.0,0.00015068,2]
[323030119,1713605444671,-598.88,0.00015068,2]
[323030120,1713605444681,-500.0,0.00015068,2]
[323030121,1713605444690,-500.0,0.00015068,2]
[323030122,1713605444700,-1576.79,0.00015068,2]
[323030123,1713605444709,-721.0,0.00015068,2]
[323030124,1713605444719,-500.0,0.00015068,2]
[323030125,1713605444729,-500.0,0.00015068,2]
[323030126,1713605444738,-500.0,0.00015068,2]
[323030127,1713605444747,-500.0,0.00015068,2]
[323030128,1713605444757,-500.0,0.00015068,2]
[323030129,1713605444766,-1202.69,0.00015068,2]
[323030130,1713605444775,-500.0,0.00015068,2]
[323030131,1713605444785,-500.0,0.00015068,2]
[323030132,1713605444795,-800.49,0.00015068,2]
[323030133,1713605444805,-736.83,0.00015068,2]
[323030134,1713605444817,-500.0,0.00015068,2]
[323030135,1713605444829,-877.52,0.00015068,2]
[323030136,1713605444838,-732.87,0.00015068,2]
[323030137,1713605444848,-151.0,0.00015068,2]
[323030138,1713605444858,-500.0,0.00015068,2]
[323030139,1713605444868,-985.51,0.00015068,2]
[323030140,1713605444878,-151.0,0.00015068,2]
[323030141,1713605444888,-791.34,0.00015068,2]
[323030142,1713605444898,-500.0,0.00015068,2]
[323030143,1713605444907,-565.3,0.00015068,2]
[323030144,1713605444919,-500.0,0.00015068,2]
[323030145,1713605444930,-500.0,0.00015068,2]
[323030146,1713605444942,-1473.13,0.00015068,2]
[323030147,1713605444952,-177.27242034,0.00015068,2]
[323030148,1713605444962,-151.0,0.00015068,2]
[323030149,1713605444972,-500.0,0.00015068,2]
[323030150,1713605444981,-1227.43,0.00015068,2]
[323030151,1713605444991,-500.0,0.00015068,2]
[323030152,1713605444999,-712.12,0.00015068,2]
[323030153,1713605445009,-645.43,0.00015068,2]
[323030154,1713605445019,-500.0,0.00015068,2]
[323030155,1713605445029,-500.0,0.00015068,2]
[323030156,1713605445038,-563.58,0.00015068,2]
[323030157,1713605445048,-500.0,0.00015068,2]
[323030158,1713605445057,-949.39,0.00015068,2]
[323030159,1713605445067,-500.0,0.00015068,2]
[323030160,1713605445076,-500.0,0.00015068,2]
[323030161,1713605445086,-500.0,0.00015068,2]
[323030162,1713605445096,-500.0,0.00015068,2]
[323030163,1713605445105,-500.0,0.00015068,2]
[323030164,1713605445115,-500.0,0.00015068,2]
[323030165,1713605445125,-1415.62,0.00015068,2]
[323030166,1713605445134,-500.0,0.00015068,2]
[323030167,1713605445144,-585.88,0.00015068,2]
[323030168,1713605445153,-500.0,0.00015068,2]
[323030169,1713605445163,-1586.49,0.00015068,2]
[323030170,1713605445173,-629.05,0.00015068,2]
[323030171,1713605445183,-500.0,0.00015068,2]
[323030172,1713605445192,-500.0,0.00015068,2]
[323030173,1713605445203,-500.0,0.00015068,2]
[323030174,1713605445212,-500.0,0.00015068,2]
[323030175,1713605445222,-500.0,0.00015068,2]
[323030176,1713605445232,-1337.98,0.00015068,2]
[323030177,1713605445242,-500.0,0.00015068,2]
[323030178,1713605445252,-957.98,0.00015068,2]
[323030179,1713605445262,-500.0,0.00015068,2]
[323030180,1713605445271,-797.83,0.00015068,2]
[323030181,1713605445281,-500.0,0.00015068,2]
[323030182,1713605445291,-634.54,0.00015068,2]
[323030183,1713605445300,-776.29,0.00015068,2]
[323030184,1713605445310,-448.97,0.00015068,2]
[323030185,1713605445320,-500.0,0.00015068,2]
[323030186,1713605445331,-608.99,0.00015068,2]
[323030187,1713605445341,-500.0,0.00015068,2]
[323030188,1713605445350,-500.0,0.00015068,2]
[323030189,1713605445360,-561.38,0.00015068,2]
[323030190,1713605445370,-500.0,0.00015068,2]
[323030191,1713605445382,-1858.19,0.00015068,2]
[323030192,1713605445391,-500.0,0.00015068,2]
[323030193,1713605445401,-500.0,0.00015068,2]
[323030194,1713605445411,-500.0,0.00015068,2]
[323030195,1713605445422,-1186.32,0.00015068,2]
[323030196,1713605445433,-569.31,0.00015068,2]
[323030197,1713605445444,-500.0,0.00015068,2]
[323030198,1713605445455,-500.0,0.00015068,2]
[323030199,1713605445464,-500.0,0.00015068,2]
[323030200,1713605445474,-1497.43,0.00015068,2]
[323030201,1713605445484,-651.15,0.00015068,2]
[323030202,1713605445493,-975.01,0.00015068,2]
[323030203,1713605445503,-500.0,0.00015068,2]
[323030204,1713605445512,-651.38,0.00015068,2]
[323030205,1713605445521,-500.0,0.00015068,2]
[323030206,1713605445531,-500.0,0.00015068,2]
[323030207,1713605445541,-500.0,0.00015068,2]
[323030208,1713605445550,-514.73,0.00015068,2]
[323030209,1713605445559,-151.0,0.00015068,2]
[323030210,1713605445569,-1450.07,0.00015068,2]
[323030211,1713605445579,-500.0,0.00015068,2]
[323030212,1713605445589,-500.0,0.00015068,2]
[323030213,1713605445598,-1623.5,0.00015068,2]
[323030214,1713605445608,-500.0,0.00015068,2]
[323030215,1713605445617,-500.0,0.00015068,2]
[323030216,1713605445627,-33.52502173,0.00015068,2]
[323030217,1713605446257,-466.47497827,0.00015068,2]
[323030218,1713605446267,-500.0,0.00015068,2]
[323030219,1713605446276,-185.74824588,0.00015068,2]
[323030220,1713605446286,-500.0,0.00015068,2]
[323030221,1713605446295,-500.0,0.00015068,2]
[323030222,1713605446305,-1142.33,0.00015068,2]
[323030223,1713605446315,-746.66,0.00015068,2]
[323030224,1713605446324,-500.0,0.00015068,2]
[323030225,1713605446334,-500.0,0.00015068,2]
[323030226,1713605446343,-500.0,0.00015068,2]
[323030227,1713605446352,-500.0,0.00015068,2]
[323030228,1713605446361,-500.0,0.00015068,2]
[323030230,1713605446374,-877.27,0.00015068,2]
[323030231,1713605446383,-500.0,0.00015068,2]
[323030232,1713605446392,-1255.65,0.00015068,2]
[323030233,1713605446401,-1326.74,0.00015068,2]
[323030234,1713605446411,-500.0,0.00015068,2]
[323030235,1713605446420,-151.0,0.00015068,2]
[323030236,1713605446430,-192.63635,0.00015068,2]
[323030238,1713605446439,-693.39,0.00015068,2]
[323030239,1713605446449,-638.7,0.00015068,2]
[323030241,1713605446459,-500.0,0.00015068,2]
[323030242,1713605446468,-1238.6,0.00015068,2]
[323030243,1713605446477,-903.18,0.00015068,2]
[323030244,1713605446486,-500.0,0.00015068,2]
[323030245,1713605446494,-500.0,0.00015068,2]
[323030246,1713605446504,-500.0,0.00015068,2]
[323030247,1713605446513,-1245.73,0.00015068,2]
[323030248,1713605446522,-547.3,0.00015068,2]
[323030249,1713605446531,-500.0,0.00015068,2]
[323030250,1713605446541,-1369.96,0.00015068,2]
[323030251,1713605446550,-500.0,0.00015068,2]
[323030252,1713605446558,-500.0,0.00015068,2]
[323030253,1713605446567,-287.049334,0.00015068,2]
[323030254,1713605446577,-647.67,0.00015068,2]
[323030255,1713605446586,-151.0,0.00015068,2]
[323030256,1713605446595,-151.0,0.00015068,2]
[323030257,1713605446605,-151.0,0.00015068,2]
[323030258,1713605446614,-151.0,0.00015068,2]
[323030259,1713605446624,-500.0,0.00015068,2]
[323030260,1713605446633,-500.0,0.00015068,2]
[323030261,1713605446642,-500.0,0.00015068,2]
[323030262,1713605446651,-500.0,0.00015068,2]
[323030263,1713605446660,-1687.02,0.00015068,2]
[323030264,1713605446669,-500.0,0.00015068,2]
[323030265,1713605446678,-597.51,0.00015068,2]
[323030266,1713605446687,-151.0,0.00015068,2]
[323030267,1713605446695,-151.0,0.00015068,2]
[323030268,1713605446705,-500.0,0.00015068,2]
[323030269,1713605446714,-500.0,0.00015068,2]
[323030270,1713605446723,-1467.02,0.00015068,2]
[323030271,1713605446733,-151.0,0.00015068,2]
[323030272,1713605446741,-151.0,0.00015068,2]
[323030273,1713605446750,-151.0,0.00015068,2]
[323030274,1713605446760,-151.0,0.00015068,2]
[323030275,1713605446769,-151.0,0.00015068,2]
[323030276,1713605446778,-500.0,0.00015068,2]
[323030277,1713605446787,-327.48037992,0.00015068,2]
[323030278,1713605446796,-151.0,0.00015068,2]
[323030279,1713605446806,-151.0,0.00015068,2]
[323030280,1713605446815,-500.0,0.00015068,2]
[323030281,1713605446824,-500.0,0.00015068,2]
[323030282,1713605446835,-151.0,0.00015068,2]
[323030283,1713605446844,-500.0,0.00015068,2]
[323030284,1713605446853,-500.0,0.00015068,2]
[323030285,1713605446862,-966.71,0.00015068,2]
[323030286,1713605446871,-500.0,0.00015068,2]
[323030287,1713605446881,-500.0,0.00015068,2]
[323030288,1713605446890,-500.0,0.00015068,2]
[323030289,1713605446899,-178.005381,0.00015068,2]
[323030290,1713605446908,-178.005381,0.00015068,2]
[323030291,1713605446917,-500.0,0.00015068,2]
[323030292,1713605446926,-1399.2,0.00015068,2]
[323030293,1713605446935,-151.0,0.00015068,2]
[323030294,1713605446944,-1668.06,0.00015068,2]
[323030295,1713605446953,-151.0,0.00015068,2]
[323030296,1713605446962,-178.005381,0.00015068,2]
[323030297,1713605446971,-178.005381,0.00015068,2]
[323030298,1713605446980,-503.17359577,0.00015068,2]
[323030299,1713605447044,-26.07640423,0.00015068,2]
[323030300,1713605447053,-358.5183909,0.00015068,2]
[323030301,1713605447064,-141.4816091,0.00015068,2]
[323030302,1713605447073,-228.42295405,0.00015068,2]
[323030303,1713605447086,-607.83704595,0.00015068,2]
[323030304,1713605447095,-727.64,0.00015068,2]
[323030305,1713605447104,-599.83,0.00015068,2]
[323030306,1713605447113,-500.0,0.00015068,2]
[323030307,1713605447122,-500.0,0.00015068,2]
[323030308,1713605447131,-667.12691373,0.00015068,2]
[323030309,1713605447157,-402.61308627,0.00015068,2]
[323030310,1713605447167,-500.0,0.00015068,2]
[323030311,1713605447176,-494.82094144,0.00015068,2]
[323030312,1713605447188,-84.87597519,0.00015068,2]
[323030313,1713605447197,-286.08839212,0.00015068,2]
[323030314,1713605447234,-782.99160788,0.00015068,2]
[323030315,1713605447243,-60.54462937,0.00015068,2]
[323030316,1713605447859,-439.45537063,0.00015068,2]
[323030317,1713605447868,-49.28256406,0.00015068,2]
[323030318,1713605447886,-450.71743594,0.00015068,2]
[323030319,1713605447895,-500.0,0.00015068,2]
[323030320,1713605447904,-938.07,0.00015068,2]
[323030321,1713605447913,-500.0,0.00015068,2]
[323030322,1713605447922,-151.0,0.00015068,2]
[323030323,1713605447931,-500.0,0.00015068,2]
[323030324,1713605447940,-5.43756406,0.00015068,2]
[323030325,1713605447973,-494.56243594,0.00015068,2]
[323030326,1713605447982,-500.0,0.00015068,2]
[323030327,1713605447991,-500.0,0.00015068,2]
[323030328,1713605448000,-500.0,0.00015068,2]
[323030329,1713605448010,-1446.66827302,0.00015068,2]
[323030330,1713605448074,-113.48172698,0.00015068,2]
[323030331,1713605448084,-500.0,0.00015068,2]
[323030332,1713605448093,-399.177688,0.00015068,2]
[323030333,1713605448103,-500.0,0.00015068,2]
[323030334,1713605448112,-399.177688,0.00015068,2]
[323030335,1713605448121,-627.07864008,0.00015068,2]
[323030336,1713605448813,-500.92638977,0.00014874,2]
[323030337,1713605448872,-606.14961023,0.00014874,2]
[323030338,1713605448882,-2361.09314792,0.00014968,2]
[323030339,1713605450199,-200.0,0.00014196,2]
[323030340,1713605450209,-447.03331537,0.00014873,2]
[323030341,1713605450218,-313.49617938,0.00014873,2]
[323030342,1713605450228,-368.81869399,0.00014873,2]
[323030343,1713605450237,-12063.9484351,0.00014967,2]
[323030344,1713605450246,-7638.90685208,0.00014968,2]
[323030345,1713605450256,-538.4599699,0.00014999,2]
[323030346,1713605450265,-843.06,0.00015068,2]
[323030347,1713605450275,-500.0,0.00015068,2]
[323030348,1713605450284,-151.0,0.00015068,2]
[323030349,1713605450294,-500.0,0.00015068,2]
[323030350,1713605450305,-151.0,0.00015068,2]
[323030351,1713605450315,-399.177688,0.00015068,2]
[323030352,1713605450324,-399.177688,0.00015068,2]
[323030353,1713605450334,-500.0,0.00015068,2]
[323030354,1713605450343,-521.56642677,0.00015068,2]
[323030355,1713605450352,-795.48,0.00015068,2]
[323030356,1713605450362,-1761.74,0.00015068,2]
[323030357,1713605450374,-500.0,0.00015068,2]
[323030358,1713605450383,-500.0,0.00015068,2]
[323030359,1713605450392,-1408.75,0.00015068,2]
[323030360,1713605450402,-1717.29,0.00015068,2]
[323030361,1713605450411,-151.0,0.00015068,2]
[323030362,1713605450421,-500.0,0.00015068,2]
[323030363,1713605450430,-1099.48,0.00015068,2]
[323030364,1713605450440,-151.0,0.00015068,2]
[323030365,1713605450450,-500.0,0.00015068,2]
[323030366,1713605450459,-1164.98,0.00015068,2]
[323030367,1713605450469,-583.5,0.00015068,2]
[323030368,1713605450478,-500.0,0.00015068,2]
[323030369,1713605450487,-151.0,0.00015068,2]
[323030370,1713605450497,-2227.01,0.00015068,2]
[323030371,1713605450506,-151.0,0.00015068,2]
[323030372,1713605450515,-500.0,0.00015068,2]
[323030373,1713605450524,-15276.58,0.00015068,2]
[323030374,1713605450533,-500.0,0.00015068,2]
[323030375,1713605450543,-1186.55,0.00015068,2]
[323030376,1713605450553,-744.35,0.00015068,2]
[323030377,1713605450562,-863.15,0.00015068,2]
[323030378,1713605450571,-511.9969478,0.00015068,2]
[323030379,1713605450581,-2433.98,0.00015068,2]
[323030380,1713605450590,-1062.83,0.00015068,2]
[323030381,1713605450599,-1403.15,0.00015068,2]
[323030382,1713605450610,-500.0,0.00015068,2]
[323030383,1713605450619,-756.77,0.00015068,2]
[323030384,1713605450628,-12752.45370277,0.00015068,2]
[323030385,1713605450640,-518.6627325,0.00015068,2]
[323030386,1713605450663,-378.25350976,0.00015068,2]
[323030387,1713606043718,1363.95,0.00010588,30]
[323030388,1713606408087,26224.94062273,0.00015,5]
[323030389,1713606408111,75000.0,0.00015,5]
[323030411,1713606631914,-817.14344444,0.00011219,2]
[323030412,1713606631926,-1021.8408684,0.00011219,2]
[323030413,1713606631936,-588.1789316,0.0001122,2]
[323030414,1713606631947,-808.4224841,0.0001122,2]
[323030415,1713606631991,-580.55865504,0.0001122,2]
[323030416,1713606632093,-377.51907952,0.0001122,2]
[323030417,1713606632102,-781.07343554,0.00011221,2]
[323030418,1713606632111,-353.58821588,0.00011223,2]
[323030419,1713606632121,-345.26,0.00011228,2]
[323030420,1713606632130,-6490.4046316,0.00011562,2]
[323030421,1713606632141,-18247.65379445,0.00011562,2]
[323030422,1713606632157,-1743.71527392,0.00011562,2]
[323030423,1713606632204,-694.10999999,0.00011562,2]
[323030447,1713606637918,-8068.78783222,0.00011562,2]
[323030448,1713606637927,-563.8136634,0.00011581,2]
[323030450,1713606637936,-836.25,0.00013005,2]
[323030451,1713606637945,-2133.63,0.00013032,2]
[323030452,1713606637954,-177.13,0.00013085,2]
[323030453,1713606637964,-150.0,0.00013178,2]
[323030454,1713606637973,-184.9,0.00013188,2]
[323030455,1713606637981,-250.0,0.00013206,2]
[323030456,1713606637990,-7418.65,0.00013291,2]
[323030457,1713606637999,-165.32,0.00013398,2]
[323030458,1713606638010,-5909.02,0.00013403,2]
[323030459,1713606638020,-163.75,0.00013437,2]
[323030460,1713606638030,-345.26,0.00013492,2]
[323030461,1713606638039,-500.0,0.00013699,2]
[323030462,1713606638048,-200.0,0.00013699,2]
[323030463,1713606638057,-2250.0,0.00014,2]
[323030464,1713606638067,-892.2422,0.00014242,2]
[323030465,1713606638077,-162.16,0.00014247,2]
[323030466,1713606638088,-3676.8773,0.00014296,2]
[323030467,1713606638098,-1000.0,0.00014296,2]
[323030468,1713606638108,-2468.6713,0.00014296,2]
[323030469,1713606638117,-156.07,0.00014386,2]
[323030470,1713606638127,-2971.18768843,0.00014386,2]
[323030471,1713606638136,-542.29633816,0.00014395,2]
[323030472,1713606638145,-10012.6899,0.00014396,2]
[323030473,1713606638156,-26716.1133,0.00014396,2]
[323030474,1713606638166,-162976.2942,0.00014396,2]
[323030475,1713606638175,-1863.8211,0.00014396,2]
[323030476,1713606638184,-319.1355,0.00014397,2]
[323030477,1713606638193,-820.5231,0.00014397,2]
[323030478,1713606638202,-500.0,0.00014397,2]
[323030479,1713606638211,-163.4826,0.00014397,2]
[323030480,1713606638221,-7662.69449093,0.00014397,2]
[323030481,1713606638232,-2461.40670907,0.00014397,2]
[323030482,1713606638242,-174.20494602,0.00014398,2]
[323030483,1713606638252,-1012.33894457,0.00014398,2]
[323030484,1713606638262,-241.96832676,0.00014398,2]
[323030486,1713606638271,-192.56534088,0.00014398,2]
[323030487,1713606638280,-521.47876322,0.00014398,2]
[323030489,1713606638289,-214.4422694,0.00014398,2]
[323030490,1713606638299,-521.81,0.000144,2]
[323030491,1713606638308,-150.0,0.000144,2]
[323030492,1713606638317,-13596.30438587,0.0001448,2]
[323030493,1713606638366,-20132.09373262,0.0001448,2]
[323030494,1713606638376,-254.42135929,0.00014485,2]
[323030495,1713606638385,-162.22,0.00014485,2]
[323030496,1713606638396,-162.22,0.00014486,2]
[323030497,1713606638405,-254.42135929,0.00014487,2]
[323030498,1713606638415,-162.22,0.00014487,2]
[323030499,1713606638424,-156.07,0.00014487,2]
[323030500,1713606638433,-426.7849883,0.00014488,2]
[323030501,1713606638442,-4155.5713436,0.0001449,2]
[323030502,1713606638461,-12534.6274344,0.0001449,2]
[323030503,1713606638472,-21596.40641486,0.0001449,2]
[323030504,1713606638501,-56337.85480714,0.0001449,2]
[323030505,1713606638510,-684.94443357,0.00014494,2]
[323030506,1713606638520,-174.32406264,0.00014494,2]
[323030507,1713606638529,-167.44367917,0.00014494,2]
[323030508,1713606638538,-4330.05700395,0.00014494,2]
[323030509,1713606638548,-212.21332394,0.00014494,2]
[323030510,1713606638558,-756.25591946,0.00014494,2]
[323030511,1713606638567,-721.10660169,0.00014494,2]
[323030512,1713606638579,-209.04676738,0.00014495,2]
[323030513,1713606638588,-193.11993615,0.00014495,2]
[323030514,1713606638597,-1302.01131147,0.00014495,2]
[323030515,1713606638607,-4750.12059232,0.00014495,2]
[323030516,1713606638616,-155.0,0.00014495,2]
[323030517,1713606638625,-594.4950471,0.00014495,2]
[323030518,1713606638635,-24941.79,0.00014495,2]
[323030519,1713606638644,-24941.79,0.00014495,2]
[323030520,1713606638653,-24941.79,0.00014495,2]
[323030521,1713606638663,-24941.79,0.00014495,2]
[323030522,1713606638673,-24941.79,0.00014495,2]
[323030523,1713606638682,-24941.79,0.00014495,2]
[323030524,1713606638691,-24941.79,0.00014495,2]
[323030525,1713606638701,-24941.79,0.00014495,2]
[323030526,1713606638710,-24941.79,0.00014495,2]
[323030527,1713606638719,-24941.79,0.00014495,2]
[323030528,1713606638728,-24941.79,0.00014495,2]
[323030529,1713606638737,-24941.79,0.00014495,2]
[323030530,1713606638747,-24941.79,0.00014495,2]
[323030531,1713606638760,-24941.79,0.00014495,2]
[323030532,1713606638769,-24941.79,0.00014495,2]
[323030533,1713606638778,-24941.79,0.00014495,2]
[323030534,1713606638787,-24941.79,0.00014495,2]
[323030536,1713606638797,-24941.79,0.00014495,2]
[323030537,1713606638806,-24941.79,0.00014495,2]
[323030538,1713606638816,-24941.79,0.00014495,2]
[323030539,1713606638826,-24941.79,0.00014495,2]
[323030540,1713606638835,-24941.79,0.00014495,2]
[323030541,1713606638846,-24941.79,0.00014495,2]
[323030542,1713606638857,-24941.9494744,0.00014495,2]
[323030543,1713606638867,-267.10232057,0.00014496,2]
[323030544,1713606638875,-6620.20474409,0.00014496,2]
[323030545,1713606638885,-4406.01803981,0.00014496,2]
[323030546,1713606638895,-526311.80240832,0.00014496,2]
[323030547,1713606638904,-633.33343995,0.00014496,2]
[323030548,1713606638914,-856327.92623046,0.00014497,2]
[323030549,1713606638923,-245000.0,0.00014498,2]
[323030550,1713606638932,-1000.0,0.00014498,2]
[323030551,1713606638942,-448.3707,0.00014498,2]
[323030552,1713606638951,-150.0,0.00014548,2]
[323030553,1713606638961,-150.0,0.00014548,2]
[323030554,1713606638970,-150.0,0.00014548,2]
[323030555,1713606638979,-177.94,0.00014548,2]
[323030556,1713606638988,-150.0,0.00014548,2]
[323030557,1713606639000,-150.0,0.00014548,2]
[323030558,1713606639009,-150.0,0.00014548,2]
[323030559,1713606639018,-150.0,0.00014548,2]
[323030560,1713606639027,-150.0,0.00014548,2]